Cogmind - Beta 15 @@@ ROGUE MODE // 2025.08.23 @ 00:48:55 Player: OoferDoofums Result: Destroyed by G-47 Trooper with Particle Gun Performance ------------- Evolutions (2) 1000 Regions Visited (3) 600 Robots Destroyed (43) 215 Value Destroyed (1262) 1262 Prototype IDs (1) 20 Alien Tech Used (0) 0 Bonus (0) 0 TOTAL SCORE: 3097 Bonus ------- None Cogmind --------- Core Integrity 0/550 Matter 23/300 Energy 99/100 System Corruption 0% Temperature Cool (9) Movement Core (50) Location -8/Materials Parts ------- > --- POWER (1) -------- (None) > --- PROPULSION (5) --- (None) > --- UTILITY (3) ------ System Shield > --- WEAPON (2) ------- Light Assault Rifle > --- INVENTORY (5) ---- Light Nuclear Core Airjet Launcher Guidance Computer Launcher Guidance Computer Launcher Guidance Computer Peak State ------------ > --- POWER ------------ Light Nuclear Core > --- PROPULSION ------- Titanium Leg Titanium Leg Titanium Leg > --- UTILITY ---------- Medium Storage Unit Launcher Guidance Computer System Shield > --- WEAPON ----------- Heavy Missile Launcher Heavy Missile Launcher > --- INVENTORY -------- Light Nuclear Core Light Nuclear Core Airjet Launcher Guidance Computer Launcher Guidance Computer Launcher Guidance Computer Light Assault Rifle Heavy Assault Rifle Autogun Heavy Missile Launcher [Rating: 31] Favorites ----------- Power Light Nuclear Core Engine Light Ion Engine Power Core Light Nuclear Core Propulsion Wheel Treads Light Treads Leg Aluminum Leg Wheel Wheel Flight Unit Flight Unit Utility Medium Armor Plating Device Improved Heat Sink Storage Medium Storage Unit Processor Launcher Guidance Computer Hackware System Shield Protection Medium Armor Plating Weapon Light Assault Rifle Energy Gun Medium Laser Ballistic Gun Light Assault Rifle Launcher Heavy Missile Launcher Build | -11 -10 -9 -8 ------- Run | Yrd Mat Mat Mat Slots Evolved 4 | . . 2 2 Power . | . . . . Propulsion 3 | . . 2 1 Utility 1 | . . . 1 Weapon . | . . . . Parts Attached 61 | 6 18 22 15 Power 7 | 1 3 2 1 Engine 5 | 1 2 2 . Core 2 | . 1 . 1 Reactor . | . . . . Propulsion 23 | 2 5 12 4 Treads 2 | . . 2 . Leg 7 | . . 3 4 Wheel 6 | 2 . 4 . Hover . | . . . . Flight 8 | . 5 3 . Utility 16 | 1 8 4 3 Device 5 | . 4 . 1 Storage 4 | 1 2 1 . Processor 2 | . 1 . 1 Hackware 1 | . . . 1 Protection 4 | . 1 3 . Artifact . | . . . . Weapon 15 | 2 2 4 7 Energy Gun 5 | . . 2 3 Energy Cannon . | . . . . Ballistic Gun 7 | 2 2 2 1 Ballistic Cannon . | . . . . Launcher 3 | . . . 3 Special Weapon . | . . . . Impact Weapon . | . . . . Slashing Weapon . | . . . . Piercing Weapon . | . . . . Special Melee Weapon . | . . . . Unidentified Prototypes 1 | . . 1 . Parts Lost 39 | . 5 11 23 Power 5 | . 1 2 2 Propulsion 16 | . 3 5 8 Utility 8 | . 1 2 5 Weapon 10 | . . 2 8 Highest Loss Streak 10 | . 5 6 10 To Critical Strikes . | . . . . Average Backups 5 | 3 6 4 6 Power . | . 1 . 1 Propulsion 1 | 1 3 . . Utility . | . . 1 . Weapon 2 | . 1 2 3 Tool/Special . | . . . . Unused Backups 16 | . 10 . 6 Power 4 | . 2 . 2 Propulsion 6 | . 5 . 1 Utility 3 | . . . 3 Weapon 3 | . 3 . . Tool/Special . | . . . . Average Slot Usage (%) 86 | . 93 89 75 Engine 4 | . 8 3 2 Core 4 | . 4 5 4 Treads 4 | . . 7 4 Leg 10 | . . 5 25 Wheel 11 | . 10 19 . Flight 7 | . 16 6 . Device 5 | . 9 5 2 Storage 6 | . 10 1 9 Hackware 1 | . . . 4 Protection 7 | . 3 12 4 Energy Gun 5 | . . 8 6 Ballistic Gun 14 | . 28 12 5 Launcher 1 | . . . 4 Peak Build Rating 31 | 6 12 16 31 Average Rating 12 | 4 8 12 18 On Entrance 7 | . 6 12 12 Naked Turns . | . . . . Heaviest Build 30 | 12 30 22 29 Greatest Support 71 | 20 20 40 71 Greatest Overweight (x) 5 | 3 1 3 5 Average Overweight (x) . | . . . . Largest Inventory Capacity 15 | 8 15 10 10 Average Capacity 7 | 7 8 5 9 Most Carried 15 | 6 15 6 10 Average Carried 5 | 3 6 4 6 Final Capacity 10 | 8 5 10 5 Final Carried 6 | 6 5 6 5 Class Distribution -------------------- 69% | Mutant 30% | Scavenger-Mutant Dominant Class ---------------- Mutant | -10/Materials Mutant | -9/Materials Mutant | -8/Materials Resources | -11 -10 -9 -8 ----------- Run | Yrd Mat Mat Mat Matter Collected 983 | 260 189 348 186 Remotely . | . . . . Salvage Created 1409 | . 290 545 574 Parts 70 | . 13 23 34 Haulers Intercepted 1 | . 1 . . Recyclers Shooed 1 | . . . 1 Parts Field Recycled . | . . . . Retrieved Matter . | . . . . Parts Self-Destructed . | . . . . Prevented . | . . . . Kills | -11 -10 -9 -8 ------- Run | Yrd Mat Mat Mat Combat Hostiles Destroyed 33 | . 6 13 14 Melee 1 | . . 1 . Guns 24 | . 6 12 6 AOE 8 | . . . 8 Classes Destroyed 11 | . 3 3 5 Worker 2 | . . 1 1 Builder 3 | . . . 3 Hauler 1 | . 1 . . Recycler 1 | . . . 1 Mechanic 1 | . . . 1 Watcher 2 | . . . 2 Swarmer 8 | . 1 4 3 Grunt 21 | . 5 7 9 Brawler 1 | . . 1 . Sentry 2 | . . 1 1 Hunter 1 | . . . 1 Best Kill Streak 11 | . 5 6 11 Combat Bots Only 6 | . 5 5 6 Max Kills in Single Turn 6 | . 1 1 6 Gunslinging . | . . . . Exploded 5 | . . . 5 Melee 1 | . . 1 . Uniques/NPCs Destroyed . | . . . . Combat | -11 -10 -9 -8 -------- Run | Yrd Mat Mat Mat Hostile Shots Fired 396 | . 57 120 219 Missed 126 | . 22 29 75 Hits 270 | . 35 91 144 Melee 4 | . . 4 . Projectile 266 | . 35 87 144 Critical Strikes 13 | . 1 1 11 Damage Taken 4047 | 2 411 1084 2550 Core 884 | . 110 224 550 Absorbed by Shields . | . . . . Core Remaining (%) 66 | 100 56 44 . Volleys Fired 113 | . 17 42 54 Largest 2 | . 2 2 2 Hottest 104 | . 40 100 104 Shots Fired 191 | . 34 66 91 Gun 175 | . 34 66 75 Cannon . | . . . . Launcher 16 | . . . 16 Special . | . . . . Kinetic 110 | . 34 39 37 Thermal 50 | . . 27 23 Explosive 16 | . . . 16 Electromagnetic 15 | . . . 15 Robot Hit Streak 10 | . 5 10 7 Robot Miss Streak 7 | . 5 3 7 Penetration Max . | . . . . Secondary Targets 3 | . 3 . . Max Gunslinging Chain 1 | . 1 . . Shots Hit Robots 114 | . 22 42 50 Core Hits 84 | . 19 23 42 Critical Kills . | . . . . Critical Parts Destroyed 1 | . . 1 . Critical Strikes 2 | . . 2 . Burn 1 | . . 1 . Destroy 1 | . . 1 . Melee Attacks . | . . . . Impact . | . . . . Slashing . | . . . . Piercing . | . . . . Sneak Attacks . | . . . . Combat Hostiles . | . . . . Follow-up Attacks . | . . . . Damage Inflicted 3122 | 4 232 641 2245 Guns 1493 | . 232 597 664 Cannons . | . . . . Explosions 1581 | . . . 1581 Melee . | . . . . Ramming 48 | 4 . 44 . Kinetic 957 | . 232 387 338 Thermal 735 | . . 210 525 Explosive 1241 | . . . 1241 Electromagnetic 141 | . . . 141 Impact . | . . . . Slashing . | . . . . Piercing . | . . . . Highest Corruption 6 | . . 6 . Average Corruption 4 | . . 4 . Corruption Purged . | . . . . Corruption Blocked . | . . . . Effects 8 | . . 8 . Message Errors 1 | . . 1 . Matter Fused 1 | . . 1 . Heat Flow Errors 3 | . . 3 . Energy Discharges 1 | . . 1 . Parts Rejected 1 | . . 1 . Data Loss (minor) 1 | . . 1 . Overload Shots . | . . . . Overflow Damage 25 | . . . 25 Projectiles . | . . . . Explosions 25 | . . . 25 Melee . | . . . . Knockbacks . | . . . . Impact . | . . . . Kinetic . | . . . . Secondary . | . . . . Self-Inflicted Damage 65 | 2 . 19 44 Shots 1 | . . . 1 Rammed 13 | 1 . 12 . Targets Rammed 13 | 1 . 12 . Kicked . | . . . . Crushed . | . . . . Highest Temperature 265 | . 53 265 201 Average Temperature 92 | . 18 104 101 Received Heat Transfer 1620 | . 219 348 1053 Effects 1 | . . 1 . Energy Bleed 1 | . . 1 . Siege Activations . | . . . . Martial Activations . | . . . . Shielding Activations . | . . . . Robots Disrupted . | . . . . Combat Hostiles . | . . . . Robots Corrupted . | . . . . Combat Hostiles . | . . . . Parts Fried . | . . . . Impact Corruptions . | . . . . Robots Melted . | . . . . Combat Hostiles . | . . . . Parts Melted 3 | . . 2 1 Heat Transferred 1527 | . . 703 824 Parts Sabotaged . | . . . . Parts Stolen . | . . . . Parts Stripped . | . . . . Power Chain Reactions 2 | . . . 2 Alert | -11 -10 -9 -8 ------- Run | Yrd Mat Mat Mat Maximum Alert Level 1 | . . . 1 Low Security (%) 90 | 100 100 100 66 Level 1 9 | . . . 33 Level 2 . | . . . . Level 3 . | . . . . Level 4 . | . . . . Level 5 . | . . . . High Security . | . . . . Max Security . | . . . . Peak Influence 343 | . 102 136 343 Initial 28 | . . 26 28 Average 64 | . 29 58 114 Influence Increases 1182 | . 202 366 614 Destroy 0b10 Robot/C 660 | . 120 260 280 Destroy 0b10 Robot/NC 50 | . 5 5 40 Destroy Leader 136 | . 32 40 64 Disable Machine 60 | . . . 60 Destroy Structure 141 | . . 1 140 Lose Combat Pursuer 135 | . 45 60 30 Influence Decreases 943 | . 140 360 443 Entered New Map 76 | . . 36 40 Time Decay 503 | . 90 214 199 Lost Part 364 | . 50 110 204 Squads Dispatched 5 | . 1 . 4 Investigation 2 | . 1 . 1 Extermination . | . . . . Reinforcement 3 | . . . 3 Assault . | . . . . Garrison . | . . . . Intercept . | . . . . Searches Triggered . | . . . . Construction Impeded 1 | . . . 1 Haulers Reinforced . | . . . . Active Scanning Responses . | . . . . Cargo Convoy Interrupts . | . . . . Stealth | -11 -10 -9 -8 --------- Run | Yrd Mat Mat Mat Distress Signals 6 | . 1 3 2 Communications Jammed . | . . . . Distress Signals . | . . . . Times Spotted 58 | . 10 20 28 Peak Tracking Total 13 | . 8 13 10 Tactical Retreats 6 | . 1 3 2 Traps | -11 -10 -9 -8 ------- Run | Yrd Mat Mat Mat Traps Triggered 3 | . 1 1 1 Indirectly . | . . . . Trap Hack Attempts . | . . . . Triggered . | . . . . Disarmed . | . . . . Reprogrammed . | . . . . Reused . | . . . . Traps Extracted . | . . . . Installed . | . . . . Triggered . | . . . . Machines | -11 -10 -9 -8 ---------- Run | Yrd Mat Mat Mat Machines Disabled 4 | . . . 4 Max in Single Turn 2 | . . . 2 Machines Repaired . | . . . . Machines Dismantled . | . . . . Machines Sabotaged . | . . . . Overloaded Fab Kills . | . . . . Hacking | -11 -10 -9 -8 --------- Run | Yrd Mat Mat Mat Machines Accessed 3 | . 2 1 . Terminals 1 | . 1 . . Fabricators . | . . . . Repair Stations . | . . . . Recycling Units 2 | . 1 1 . Scanalyzers . | . . . . Garrison Access . | . . . . Total Hacks 10 | . 7 3 . Successful 6 | . 5 1 . Failed 4 | . 2 2 . Catastrophic . | . . . . Database Lockouts . | . . . . Manual . | . . . . Terminals 1 | . 1 . . Fabricators . | . . . . Repair Stations . | . . . . Recycling Units 9 | . 6 3 . Scanalyzers . | . . . . Garrison Access . | . . . . Terminal Hacks 1 | . 1 . . Zone Layout 1 | . 1 . . Fabricator Hacks . | . . . . Repair Station Hacks . | . . . . Recycling Unit Hacks 5 | . 4 1 . Process 1 | . 1 . . Report Inventory 2 | . 1 1 . Retrieve Matter 2 | . 2 . . Scanalyzer . | . . . . Garrison Access Hacks . | . . . . Unauthorized Hacks . | . . . . Terminals . | . . . . Fabricators . | . . . . Repair Stations . | . . . . Recycling Units . | . . . . Scanalyzers . | . . . . Garrison Access . | . . . . Data Cores Recovered . | . . . . Used . | . . . . Hacking Detections 2 | . 1 1 . Full Trace Events . | . . . . Feedback Events . | . . . . Feedback Blocked . | . . . . Robot Schematics Acquired . | . . . . Robots Built . | . . . . Authchips . | . . . . Time . | . . . . Total Robot Build Rating . | . . . . Part Schematics Acquired . | . . . . Parts Built . | . . . . Authchips . | . . . . Time . | . . . . Total Part Build Rating . | . . . . Parts Repaired . | . . . . Time . | . . . . Parts Recycled . | . . . . Recycled Matter 10 | . 10 . . Retrieved Matter 10 | . 10 . . Retrieved Components . | . . . . Parts Scanalyzed . | . . . . Part Schematics Acquired . | . . . . Parts Damaged . | . . . . Bothacking | -11 -10 -9 -8 ------------ Run | Yrd Mat Mat Mat Used RIF Installer . | . . . . Robots Hacked . | . . . . Non-combat . | . . . . Combat . | . . . . Robot Hacks Applied . | . . . . Relay Couplers Released . | . . . . Fabnet Peak Effective % . | . . . . Robots Rewired . | . . . . Allies Hacked . | . . . . Hacks Repelled . | . . . . Allies | -11 -10 -9 -8 -------- Run | Yrd Mat Mat Mat Total Allies . | . . . . Largest Group . | . . . . Highest-Rated Group . | . . . . Highest-Rated Ally . | . . . . Total Orders . | . . . . Ally Attacks . | . . . . Total Damage . | . . . . Kills . | . . . . Allies Corrupted . | . . . . Allies Melted . | . . . . Intel | -11 -10 -9 -8 ------- Run | Yrd Mat Mat Mat Active Infowar (turns) 97 | . 97 . . Terrain 75 | . 75 . . Structural 64 | . 64 . . T.N.C. 2 | . 2 . . Robot Analysis Total . | . . . . Derelict Logs Recovered . | . . . . Drone Launches . | . . . . Drone Recoveries . | . . . . Exploration | -11 -10 -9 -8 ------------- Run | Yrd Mat Mat Mat Turns Passed 1528 | 89 387 601 451 Spaces Moved 935 | 88 308 322 217 Core 34 | 16 . 3 15 Treads 7 | . . 7 . Legs 304 | . . 102 202 Wheels 380 | 72 119 189 . Hover . | . . . . Flight 210 | . 189 21 . Fastest Speed 37 | 50 37 42 50 Average Speed 103 | 83 81 116 122 Slowest Speed 300 | 200 117 285 300 Overloaded Moves . | . . . . Propulsion Burnouts . | . . . . Robots Hopped . | . . . . Potential Cave-ins 5 | . . . 5 Cave-ins Triggered . | . . . . Exploration Rate (%) 23 | 4 44 25 19 Regions Visited 3 Branch Regions . Pre-discovered Areas . | . . . . Known Exits Taken . | . . . . Unknown Exits Taken 3 | 1 1 1 . Scrap Searched . | . . . . Spaces Dug . | . . . . Terrain Destroyed 156 | . . . 156 Melee . | . . . . Projectile . | . . . . AOE 156 | . . . 156 Terrain Rammed . | . . . . Walls Destroyed . | . . . . Machines Disabled . | . . . . Actions | -11 -10 -9 -8 --------- Run | Yrd Mat Mat Mat Total 1302 | 100 419 480 303 Wait 103 | . 39 64 . Move 932 | 87 307 321 217 Hop . | . . . . Pick Up 40 | 6 19 7 8 Fast Attach 35 | 6 6 14 9 Attach 19 | . 4 6 9 Detach 1 | . . 1 . Swap 20 | . 9 6 5 Drop 26 | . 18 7 1 Fire 113 | . 17 42 54 Melee . | . . . . Ram 13 | 1 . 12 . Kick . | . . . . Crush . | . . . . Escape Stasis . | . . . . Rewire . | . . . . Trap . | . . . . Miscellaneous . | . . . . Route ------- -11/Scrapyard -10/Materials -9/Materials -8/Materials History --------- Turn | Location | Event 21 | -11/Scrapyard | Discovered new exit (range 16) 90 | -11/Scrapyard | Entered Materials 337 | -10/Materials | Build established: Mutant 375 | -10/Materials | Lost 5 parts (1p3n1u) 472 | -10/Materials | Discovered new exit (range 5) 477 | -10/Materials | Entered another Materials area 477 | -9/Materials | Evolved 2 slots: Propulsion x2 810 | -9/Materials | Lost 6 parts (1p3n1u1w) 834 | -9/Materials | Core integrity fell below 50% 868 | -9/Materials | Lost 4 parts (1p1n1u1w) 1053 | -9/Materials | Discovered new exit (range 14) 1078 | -9/Materials | Entered another Materials area 1078 | -8/Materials | Evolved 2 slots: Propulsion x1, Utility x1 1233 | -8/Materials | Lost 8 parts (1p4n2u1w) 1372 | -8/Materials | Core integrity fell below 50% 1398 | -8/Materials | Lost 5 parts (2n1u2w) 1502 | -8/Materials | Core integrity fell below 20% 1529 | -8/Materials | Destroyed by G-47 Trooper with Particle Gun Last Messages --------------- Acquired 22 matter. U-05 Engineer builds a Wall. U-05 Engineer lays Concrete. Acquired 4 matter. Titanium Leg destroyed. Titanium Leg blasted off. Autogun destroyed. R-06 Scavenger collects Lgt. Assault Rifle. Hvy. Assault Rifle destroyed. Acquired 9 matter. U-05 Engineer lays Concrete. Acquired 4 matter. U-05 Engineer builds a Wall. G-47 Trooper destroyed. Acquired 6 matter. Hvy. Missile Launcher destroyed. Med. Storage Unit destroyed. U-05 Engineer builds a Wall. The unstable cave ceiling collapses. Acquired 3 matter. Map ----- +----------------------------------------------------+ | ?????????????????????????????????????????????????? | | ?????????????????????????????????????????????????? | | ?????????????????????????????????????????????????? | | ?????????????????????????????????????????????????? | | ?????????????????????????????????????????????????? | | ?????????????????????????????????????????????????? | | ???????????????????????????????????????????? ????? | | ??????????????????????????????????????????? #???? | | ?????????????????????????????????????????? #???? | | ???????????????????????????????????##?#### ????? | | ?????????????????????????????????### # # ????? | | ????????????????????????????###### ?????? | | ???????????????????????????## = # ?????? | | ???????????????????????????# =% ?????? | | ???????????????????????????# ????? | | ???????????????????????????# ??????? | | ???????????????????????????## ?? ????? | | ???????????????????????????#; # ???? | | ??????????????????????######;# # ?????? | | ??????????????????????# #! ] ! ?????????? | | ??????????????????????# % # #?????????? | | ??????????????????????# # "" #?? ?????? | | ??????????????????????# # """ #? ?????? | | ??????????????????????# # # ???????? | | ??????????????????????# # # ????????? | | ??????????????????????# @ # # ""??????? | | ??????????????????????# % # ??????? | | ??????????????????????# ! ###???????? | | ??????????????????????# = ########## | | ??????????????????????# g H # | | ??????????????????????### # % ## % | | ????????????????????????# #% # | | ????????????????????????# # = | | ????????????????????????# ## | | ????????????????????????## #* | | ?????????????????????????# ############+### | | ?????????????????????????#### # #??# | | ????????????????????????????# [ #??????#""" | | ????????????????????????????" !!#??????#""" | | ????????????????????????????# ] !!#??????#""" ! | | ????????????????????????????#"#"####??????# ! | | ????????????????????????????#####?????????#""" * | | ??????????????????????????????????????????#""" | | ??????????????????????????????????????????#""" | | ??????????????????????????????????????????# | | ??????????????????????????????????????????#####+## | | ??????????????????????????????????###/####### | | ???????????????????????############ | | ???????????????????????# """"" | | ???????????????????????# ""T"" | +----------------------------------------------------+ Best States ------------- Heat Dissipation 45 Energy Generation 14 Energy Capacity 250 Matter Stores 300 Matter Capacity 450 Sight Range 16 Terrain Scan Range 14 Terrain Scan Density 10 Armor Coverage 450 Evasion (%) 62 Launcher Accuracy 20 Recoil Reduction 2 Defensive Hacking 10 Item Schematics ----------------- None Robot Schematics ------------------ None Fabricated ------------ Nothing Repaired ---------- Nothing Alien Tech Used ----------------- None Achievements -------------- Fist Fight Quick And Dirty Challenges ------------ None Game ------ Seed PortableScanPit Manual? 0 Play Time 00:29:16 Cumulative 36.4 hours Start 2025.08.23 @ 00:18:08 End 2025.08.23 @ 00:48:55 Sessions 1 Manual Loads 0 Difficulty Rogue Special Mode None Game No. 66 Rogue 66 Adventurer 0 Explorer 0 Win Type - Total 0 Types 0/0/0/0/0/0/0/0/0/0 Lore% 25 Gallery% 28 Achievement% 23 Wizard Run 0 Options --------- Layout 1 ASCII 0 Keyboard 0 Movement Mouse Keybinds 0 Fullscreen 1 Font 24/Smallcaps Map View 50x35 Zoom Use 0% Tactical HUD 0 Map Filters NONE Filters NONE Steam 1 RUN: 0415a0b1-169d-4f5a-a47a-151b095e03ee